fUST/lending_fUST_20240519
["ID","MTS","AMOUNT","RATE_DAILY","PERIOD"]
[327506328,1716131443587,-1349.86150143,0.0002091,2]
[327506329,1716131443597,-175.15266156,0.0002091,2]
[327506330,1716131443607,-262.09871976,0.00020911,2]
[327506331,1716131443616,-10448.86120355,0.00020911,2]
[327506332,1716131443626,-5531.83559925,0.00020912,2]
[327506333,1716131443636,-2107.25657902,0.00020912,2]
[327506334,1716131443646,-155.76460433,0.00020912,2]
[327506335,1716131443655,-185.08038665,0.00020912,2]
[327506336,1716131443668,-574.73449503,0.00020912,2]
[327506337,1716131443678,-521.89035678,0.00020912,2]
[327506338,1716131443687,-412.53784759,0.00020912,2]
[327506339,1716131443697,-1897.3147211,0.00020913,2]
[327506340,1716131443707,-166.666666,0.00021918,2]
[327506341,1716131443717,-159.68754847,0.00022,2]
[327506342,1716131443726,-305.34348314,0.00022148,2]
[327506343,1716131443736,-166.666666,0.00022431,2]
[327506344,1716131443745,-166.666666,0.00022944,2]
[327506345,1716131443755,-4691.82133028,0.00023,2]
[327506346,1716131443764,-154.84515485,0.00023,2]
[327506347,1716131443773,-166.666666,0.00023456,2]
[327506348,1716131443782,-2421.74818551,0.000239,2]
[327506349,1716131443792,-166.666666,0.00023969,2]
[327506350,1716131443801,-187.1445694,0.00024,2]
[327506351,1716131443810,-461.7,0.00024384,2]
[327506352,1716131443820,-7966.29695807,0.000244,2]
[327506353,1716131443830,-166.666666,0.00024482,2]
[327506354,1716131443839,-203.55922642,0.00024999,2]
[327506355,1716131443849,-400.66759561,0.00025,2]
[327506356,1716131443859,-167.40589565,0.00025,2]
[327506357,1716131443869,-1019.15478625,0.00026,2]
[327506358,1716131443878,-309.56132059,0.00027,2]
[327506359,1716131443887,-307.0,0.00027123,16]
[327506360,1716131443897,-725.8587562,0.00027671,2]
[327506361,1716131443907,-221.53735836,0.00028,2]
[327506362,1716131443917,-241.250007,0.0002813,2]
[327506363,1716131443927,-2421.74818551,0.000289,2]
[327506364,1716131443936,-167.683106,0.00028986,2]
[327506365,1716131443947,-759.88696777,0.00029531,2]
[327506366,1716131443956,-285.74827739,0.00029531,2]
[327506367,1716131443970,-10645.9878915,0.00029531,2]
[327506368,1716131443980,-209.80164977,0.00029531,2]
[327506369,1716131443990,-154.84515485,0.0003,4]
[327506370,1716131444000,-461.7,0.0003031,2]
[327506371,1716131444009,-150.0,0.00031955,7]
[327506372,1716131444019,-448.48281368,0.00032,4]
[327506373,1716131444028,-367.78059593,0.00032641,2]
[327506374,1716131444038,-819.9745554,0.00033,4]
[327506375,1716131444047,-467.90063964,0.00034,4]
[327506376,1716131444056,-162.87072874,0.00034253,7]
[327506377,1716131444066,-4221.46001999,0.0003428,2]
[327506378,1716131444075,-416.98047207,0.00034305,2]
[327506379,1716131444085,-150.0,0.00034321,2]
[327506380,1716131444095,-1574.67905695,0.00034576,4]
[327506381,1716131444104,-390.0,0.0003488,78]
[327506382,1716131444115,-696.86345808,0.000349,2]
[327506383,1716131444125,-5942.74900988,0.00035,4]
[327506384,1716131444135,-215.47670705,0.00035,4]
[327506385,1716131444146,-4761.4488906,0.00035,4]
[327506386,1716131444157,-1237.29190453,0.00035,4]
[327506387,1716131444300,-1332.001332,0.00035,7]
[327506388,1716131444315,-1331.73525103,0.00035,7]
[327506389,1716131444325,-212.51896355,0.0003589,2]
[327506390,1716131444336,-461.7,0.00036236,2]
[327506391,1716131444346,-628.0,0.000369,2]
[327506392,1716131444355,-2439.39194711,0.00037,2]
[327506393,1716131444365,-1332.001332,0.000371,7]
[327506394,1716131444375,-1210.60788091,0.000371,7]
[327506395,1716131444384,-696.86345805,0.00037383,2]
[327506396,1716131444394,-3257.25049121,0.00037456,3]
[327506397,1716131444403,-484.36412074,0.000392,11]
[327506398,1716131444413,-12743.04153829,0.00039698,2]
[327506399,1716131444424,-696.86345805,0.00039866,2]
[327506400,1716131444433,-310.24817354,0.0004,120]
[327506401,1716131444443,-157.342908,0.00040808,2]
[327506402,1716131444453,-167.683106,0.00040986,2]
[327506403,1716131444463,-1000.0,0.00041,2]
[327506404,1716131444473,-383.7,0.00041096,30]
[327506405,1716131444482,-512.86445011,0.00041096,31]
[327506406,1716131444493,-461.7,0.00042163,2]
[327506407,1716131444502,-696.86345805,0.00042348,2]
[327506408,1716131444511,-629.798923,0.000425,30]
[327506409,1716131444521,-362.0,0.00043,90]
[327506410,1716131444530,-362.0,0.00043014,90]
[327506411,1716131444539,-362.0,0.00043288,90]
[327506412,1716131444548,-169.15554417,0.00043396,3]
[327506413,1716131444558,-362.0,0.00043562,90]
[327506414,1716131444567,-2732.38686906,0.00043835,3]
[327506415,1716131444576,-500.0,0.00043835,4]
[327506416,1716131444586,-500.0,0.00043835,30]
[327506417,1716131444595,-170.54190603,0.00043835,30]
[327506418,1716131444604,-180.39217617,0.00043835,30]
[327506419,1716131444613,-500.0,0.00043835,30]
[327506420,1716131444622,-500.0,0.00043835,30]
[327506421,1716131444631,-500.0,0.00043835,30]
[327506422,1716131444641,-500.0,0.00043835,31]
[327506423,1716131444650,-500.0,0.00043835,30]
[327506424,1716131444660,-500.0,0.00043835,30]
[327506425,1716131444670,-500.0,0.00043835,30]
[327506426,1716131444679,-174.99,0.00043835,30]
[327506427,1716131444688,-500.0,0.00043835,2]
[327506428,1716131444697,-500.0,0.00043835,30]
[327506429,1716131444707,-559.32675723,0.00043835,30]
[327506430,1716131444716,-500.0,0.00043835,30]
[327506431,1716131444725,-500.0,0.00043835,30]
[327506432,1716131444733,-500.0,0.00043835,30]
[327506433,1716131444742,-300.0,0.00043835,7]
[327506434,1716131444751,-500.0,0.00043835,30]
[327506435,1716131444760,-687.42,0.00043835,20]
[327506436,1716131444768,-500.0,0.00043835,30]
[327506437,1716131444777,-500.0,0.00043835,30]
[327506438,1716131444786,-500.0,0.00043835,30]
[327506439,1716131444795,-1000.0,0.00043835,30]
[327506440,1716131444803,-500.0,0.00043835,30]
[327506441,1716131444812,-500.0,0.00043835,30]
[327506442,1716131444821,-500.0,0.00043835,30]
[327506443,1716131444830,-500.0,0.00043835,30]
[327506444,1716131444839,-500.0,0.00043835,30]
[327506445,1716131444849,-500.0,0.00043835,30]
[327506446,1716131444858,-552.96,0.00043835,30]
[327506447,1716131444868,-502.0663975,0.00043835,30]
[327506448,1716131444878,-500.0,0.00043835,30]
[327506449,1716131444887,-500.0,0.00043835,30]
[327506450,1716131444896,-500.0,0.00043835,30]
[327506451,1716131444906,-500.0,0.00043835,30]
[327506452,1716131444915,-500.0,0.00043835,30]
[327506453,1716131444926,-500.0,0.00043835,30]
[327506454,1716131444935,-500.0,0.00043835,30]
[327506455,1716131444944,-500.0,0.00043835,30]
[327506456,1716131444953,-500.0,0.00043835,30]
[327506457,1716131444962,-500.0,0.00043835,30]
[327506458,1716131444971,-500.0,0.00043835,30]
[327506459,1716131444981,-500.0,0.00043835,30]
[327506460,1716131444990,-844.79,0.00043835,30]
[327506461,1716131444999,-500.0,0.00043835,30]
[327506462,1716131445008,-500.0,0.00043835,21]
[327506463,1716131445018,-3564.14,0.00043835,30]
[327506464,1716131445027,-1254.41,0.00043835,30]
[327506465,1716131445036,-508.75,0.00043835,30]
[327506466,1716131445045,-7514.21,0.00043835,30]
[327506467,1716131445055,-500.0,0.00043835,30]
[327506468,1716131445064,-178.79718213,0.00043835,30]
[327506469,1716131445074,-500.0,0.00043835,30]
[327506470,1716131445083,-500.0,0.00043835,30]
[327506471,1716131445092,-500.0,0.00043835,31]
[327506472,1716131445102,-500.0,0.00043835,32]
[327506473,1716131445112,-500.0,0.00043835,33]
[327506474,1716131445121,-500.0,0.00043835,30]
[327506475,1716131445131,-500.0,0.00043835,30]
[327506476,1716131445140,-500.0,0.00043835,30]
[327506477,1716131445149,-167.41944615,0.00043835,30]
[327506478,1716131445158,-500.0,0.00043835,30]
[327506479,1716131445168,-210.51859287,0.00043835,30]
[327506480,1716131445177,-500.0,0.00043835,30]
[327506481,1716131445187,-734.94,0.00043835,30]
[327506482,1716131445197,-500.0,0.00043835,30]
[327506483,1716131445209,-500.0,0.00043835,30]
[327506484,1716131445219,-500.0,0.00043835,30]
[327506485,1716131445228,-3754.6,0.00043835,30]
[327506486,1716131445239,-500.0,0.00043835,30]
[327506487,1716131445248,-500.0,0.00043835,30]
[327506488,1716131445258,-500.0,0.00043835,30]
[327506489,1716131445267,-698.72,0.00043835,30]
[327506490,1716131445287,-505.97161806,0.00043835,30]
[327506491,1716131445297,-500.0,0.00043835,30]
[327506492,1716131445308,-500.0,0.00043835,30]
[327506493,1716131445317,-557.67,0.00043835,30]
[327506494,1716131445327,-307.33085221,0.00043835,30]
[327506495,1716131445337,-500.0,0.00043835,30]
[327506496,1716131445346,-500.0,0.00043835,30]
[327506497,1716131445356,-500.0,0.00043835,30]
[327506498,1716131445365,-500.0,0.00043835,30]
[327506499,1716131445376,-502.20795587,0.00043835,30]
[327506500,1716131445386,-500.0,0.00043835,30]
[327506501,1716131445396,-500.0,0.00043835,31]
[327506502,1716131445405,-500.0,0.00043835,32]
[327506503,1716131445415,-500.0,0.00043835,33]
[327506504,1716131445426,-500.0,0.00043835,34]
[327506505,1716131445436,-500.0,0.00043835,30]
[327506506,1716131445446,-500.0,0.00043835,30]
[327506507,1716131445456,-500.0,0.00043835,30]
[327506508,1716131445466,-500.0,0.00043835,30]
[327506510,1716131445476,-500.0,0.00043835,30]
[327506511,1716131445485,-500.0,0.00043835,30]
[327506512,1716131445495,-986.73,0.00043835,30]
[327506513,1716131445504,-362.0,0.00043836,90]
[327506514,1716131445514,-3000.0,0.00043999,10]
[327506515,1716131445523,-3000.0,0.00043999,10]
[327506516,1716131445533,-3000.0,0.00043999,10]
[327506518,1716131445542,-2797.10321342,0.00043999,10]
[327506519,1716131445552,-500.0,0.00043999,34]
[327506521,1716131445561,-5000.0,0.00044,3]
[327506523,1716131445571,-160.0,0.000441,29]
[327506525,1716131445580,-160.0,0.000441,29]
[327506527,1716131445590,-500.0,0.00044108,35]
[327506529,1716131445600,-500.0,0.00044108,35]
[327506531,1716131445609,-500.0,0.00044108,36]
[327506533,1716131445619,-247.4499966,0.00044109,4]
[327506535,1716131445628,-155.3678082,0.00044109,2]
[327506537,1716131445638,-541.90574349,0.00044109,4]
[327506539,1716131445647,-500.0,0.00044109,31]
[327506541,1716131445657,-500.0,0.00044109,4]
[327506543,1716131445666,-594.53,0.00044109,31]
[327506545,1716131445677,-500.0,0.00044109,31]
[327506547,1716131445685,-500.0,0.00044109,31]
[327506549,1716131445694,-500.0,0.00044109,31]
[327506551,1716131445704,-500.0,0.00044109,31]
[327506553,1716131445715,-500.0,0.00044109,31]
[327506556,1716131445725,-500.0,0.00044109,2]
[327506559,1716131445734,-500.0,0.00044109,31]
[327506562,1716131445744,-451.74,0.00044109,31]
[327506565,1716131445754,-300.0,0.00044109,7]
[327506568,1716131445764,-500.0,0.00044109,31]
[327506570,1716131445774,-687.42,0.00044109,20]
[327506572,1716131445784,-500.0,0.00044109,31]
[327506574,1716131445793,-500.0,0.00044109,31]
[327506576,1716131445803,-500.0,0.00044109,31]
[327506578,1716131445812,-1000.0,0.00044109,31]
[327506580,1716131445822,-500.0,0.00044109,31]
[327506582,1716131445831,-500.0,0.00044109,31]
[327506584,1716131445840,-500.0,0.00044109,31]
[327506585,1716131445850,-500.0,0.00044109,31]
[327506587,1716131445859,-500.0,0.00044109,31]
[327506590,1716131445869,-500.0,0.00044109,31]
[327506592,1716131445878,-500.0,0.00044109,31]
[327506593,1716131445888,-500.0,0.00044109,31]
[327506596,1716131445898,-500.0,0.00044109,31]
[327506597,1716131445907,-500.0,0.00044109,31]
[327506599,1716131445916,-500.0,0.00044109,31]
[327506601,1716131445927,-500.0,0.00044109,31]
[327506603,1716131445936,-298.03359269,0.00044109,31]
[327506605,1716131445946,-500.0,0.00044109,31]
[327506608,1716131445956,-500.0,0.00044109,31]
[327506610,1716131445966,-299.50762647,0.00044109,31]
[327506612,1716131445975,-500.0,0.00044109,31]
[327506614,1716131445985,-500.0,0.00044109,31]
[327506616,1716131445994,-844.79,0.00044109,31]
[327506618,1716131446003,-500.0,0.00044109,31]
[327506620,1716131446014,-500.0,0.00044109,21]
[327506621,1716131446024,-3564.14,0.00044109,31]
[327506623,1716131446034,-1254.41,0.00044109,31]
[327506626,1716131446044,-7514.21,0.00044109,31]
[327506627,1716131446054,-500.0,0.00044109,31]
[327506629,1716131446063,-295.03653665,0.00044109,31]
[327506631,1716131446074,-500.0,0.00044109,31]
[327506633,1716131446083,-500.0,0.00044109,31]
[327506635,1716131446092,-500.0,0.00044109,31]
[327506637,1716131446102,-500.0,0.00044109,31]
[327506639,1716131446111,-734.94,0.00044109,31]
[327506641,1716131446121,-500.0,0.00044109,31]
[327506643,1716131446131,-500.0,0.00044109,31]
[327506646,1716131446140,-3754.6,0.00044109,31]
[327506647,1716131446150,-500.0,0.00044109,31]
[327506649,1716131446160,-274.80573036,0.00044109,31]
[327506651,1716131446172,-698.72,0.00044109,31]
[327506654,1716131446182,-500.0,0.00044109,31]
[327506656,1716131446192,-500.0,0.00044109,31]
[327506657,1716131446202,-557.67,0.00044109,31]
[327506660,1716131446216,-500.0,0.00044109,31]
[327506662,1716131446226,-500.0,0.00044109,31]
[327506664,1716131446236,-500.0,0.00044109,31]
[327506666,1716131446247,-500.0,0.00044109,31]
[327506668,1716131446258,-500.0,0.00044109,31]
[327506670,1716131446267,-500.0,0.00044109,31]
[327506672,1716131446278,-500.0,0.00044109,31]
[327506674,1716131446287,-986.73,0.00044109,31]
[327506676,1716131446298,-500.0,0.00044109,8]
[327506678,1716131446307,-1104.90153803,0.00044283,2]
[327506680,1716131446317,-500.0,0.00044382,36]
[327506682,1716131446326,-500.0,0.00044382,37]
[327506683,1716131446336,-500.0,0.00044383,4]
[327506685,1716131446345,-500.0,0.00044383,32]
[327506687,1716131446355,-216.65942613,0.00044383,32]
[327506689,1716131446364,-500.0,0.00044383,32]
[327506690,1716131446374,-500.0,0.00044383,32]
[327506692,1716131446383,-500.0,0.00044383,32]
[327506694,1716131446393,-500.0,0.00044383,2]
[327506695,1716131446402,-500.0,0.00044383,32]
[327506696,1716131446412,-300.0,0.00044383,7]
[327506697,1716131446421,-500.0,0.00044383,32]
[327506698,1716131446431,-687.42,0.00044383,20]
[327506699,1716131446440,-500.0,0.00044383,32]
[327506700,1716131446450,-500.0,0.00044383,32]
[327506701,1716131446460,-500.0,0.00044383,32]
[327506702,1716131446469,-1000.0,0.00044383,32]
[327506703,1716131446479,-291.56,0.00044383,32]
[327506704,1716131446488,-500.0,0.00044383,32]
[327506705,1716131446498,-500.0,0.00044383,32]
[327506706,1716131446507,-500.0,0.00044383,32]
[327506707,1716131446517,-500.0,0.00044383,32]
[327506708,1716131446526,-500.0,0.00044383,32]
[327506709,1716131446536,-631.41400365,0.00044383,32]
[327506710,1716131446546,-500.0,0.00044383,32]
[327506711,1716131446555,-500.0,0.00044383,32]
[327506712,1716131446565,-500.0,0.00044383,32]
[327506713,1716131446575,-500.0,0.00044383,32]
[327506714,1716131446584,-500.0,0.00044383,32]
[327506715,1716131446595,-500.0,0.00044383,32]
[327506716,1716131446604,-500.0,0.00044383,32]
[327506717,1716131446613,-500.0,0.00044383,32]
[327506718,1716131446623,-500.0,0.00044383,32]
[327506719,1716131446632,-844.79,0.00044383,32]
[327506720,1716131446642,-500.0,0.00044383,21]
[327506721,1716131446651,-3564.14,0.00044383,32]
[327506722,1716131446660,-1254.41,0.00044383,32]
[327506723,1716131446670,-7514.21,0.00044383,32]
[327506724,1716131446679,-500.0,0.00044383,32]
[327506725,1716131446689,-500.0,0.00044383,32]
[327506726,1716131446698,-500.0,0.00044383,32]
[327506727,1716131446707,-500.0,0.00044383,32]
[327506728,1716131446717,-500.0,0.00044383,32]
[327506729,1716131446726,-734.94,0.00044383,32]
[327506730,1716131446736,-500.0,0.00044383,32]
[327506731,1716131446745,-500.0,0.00044383,32]
[327506732,1716131446857,-3754.6,0.00044383,32]
[327506733,1716131446867,-698.72,0.00044383,32]
[327506734,1716131446878,-500.0,0.00044383,32]
[327506735,1716131446887,-500.0,0.00044383,32]
[327506736,1716131446897,-557.67,0.00044383,32]
[327506737,1716131446906,-500.0,0.00044383,32]
[327506738,1716131446916,-500.0,0.00044383,32]
[327506739,1716131446926,-500.0,0.00044383,32]
[327506740,1716131446935,-500.0,0.00044383,32]
[327506741,1716131446944,-419.59,0.00044383,32]
[327506742,1716131446954,-500.0,0.00044383,32]
[327506743,1716131446963,-986.73,0.00044383,32]
[327506744,1716131446972,-2000.0,0.00044566,2]
[327506745,1716131446981,-500.0,0.00044656,37]
[327506746,1716131446991,-500.0,0.00044656,38]
[327506747,1716131447000,-500.0,0.00044657,4]
[327506748,1716131447010,-500.0,0.00044657,33]
[327506749,1716131447019,-512.2667002,0.00044657,33]
[327506750,1716131447028,-500.0,0.00044657,33]
[327506751,1716131447037,-500.0,0.00044657,33]
[327506752,1716131447047,-500.0,0.00044657,2]
[327506753,1716131447056,-500.0,0.00044657,33]
[327506754,1716131447065,-300.0,0.00044657,7]
[327506755,1716131447074,-500.0,0.00044657,33]
[327506756,1716131447084,-687.42,0.00044657,20]
[327506757,1716131447093,-500.0,0.00044657,33]
[327506758,1716131447102,-500.0,0.00044657,33]
[327506759,1716131447111,-500.0,0.00044657,33]
[327506760,1716131447121,-1000.0,0.00044657,33]
[327506761,1716131447130,-500.0,0.00044657,33]
[327506762,1716131447140,-500.0,0.00044657,33]
[327506763,1716131447149,-259.97692014,0.00044657,33]
[327506764,1716131447158,-500.0,0.00044657,33]
[327506765,1716131447168,-500.0,0.00044657,33]
[327506766,1716131447180,-500.0,0.00044657,33]
[327506767,1716131447189,-471.53164902,0.00044657,33]
[327506768,1716131447199,-500.0,0.00044657,33]
[327506769,1716131447214,-510.35865005,0.00044657,33]
[327506770,1716131447223,-500.0,0.00044657,33]
[327506771,1716131447233,-500.0,0.00044657,33]
[327506772,1716131447243,-500.0,0.00044657,33]
[327506773,1716131447253,-500.0,0.00044657,33]
[327506774,1716131447263,-500.0,0.00044657,33]
[327506775,1716131447272,-844.79,0.00044657,33]
[327506776,1716131447282,-500.0,0.00044657,21]
[327506777,1716131447293,-3564.14,0.00044657,33]
[327506778,1716131447303,-1254.41,0.00044657,33]
[327506779,1716131447312,-151.0,0.00044657,7]
[327506780,1716131447322,-4796.95047787,0.00044657,33]
[327506783,1716132058743,1270.0,0.00016,2]
[327506784,1716132089866,16139.66154075,0.00016,2]
[327506785,1716132090570,273.37336231,9.9e-05,2]
[327506786,1716132096731,15452.52240434,0.00016,2]
[327506787,1716132105462,304.46279691,0.00016,2]
[327506788,1716132106176,223.62416515,0.00016,2]
[327506789,1716132106986,273.37336231,9.9e-05,2]
[327506790,1716132121791,16139.66154075,0.00016,2]
[327506791,1716132126491,285.74827739,0.00016,2]
[327506792,1716132141874,8443.23913032,0.00016,2]
[327506793,1716132142436,285.74827739,0.00016,2]
[327506794,1716132166442,165.8554808,0.00016,2]
[327506795,1716132203615,154.82968734,0.00016,2]
[327506796,1716132219565,223.88639778,0.00016,2]
[327506797,1716132247603,2088.06673595,0.00016,2]
[327506798,1716132269599,2094.1586167,0.00016,2]
[327506799,1716132269971,229.19627466,0.00016,2]
[327506800,1716132346267,1350.59607574,9.999e-05,2]
[327506809,1716132484214,154.82968734,9.999e-05,2]
[327506810,1716132527206,689.77631008,9.999e-05,2]
[327506811,1716132551171,574.81359174,9.999e-05,2]
[327506812,1716132567167,299.47788129,9.999e-05,2]
[327506814,1716132589167,299.47788129,9.999e-05,2]
[327506822,1716132607172,299.47788129,9.999e-05,2]
[327506823,1716132615222,921.05245398,0.00014,2]
[327506824,1716132627168,299.47788129,9.999e-05,2]
[327506852,1716132632511,-1270.0,0.00018746,2]
[327506853,1716132632522,-2403.5481073,0.00018747,2]
[327506854,1716132632533,-250.0,0.00018779,2]
[327506855,1716132632543,-534.65863357,0.00018799,2]
[327506881,1716132640924,-2144.40339785,0.00018799,2]
[327506882,1716132640934,-1428.72089971,0.000188,2]
[327506923,1716132643836,-280.73106549,0.000188,2]
[327506924,1716132643846,-12.53413827,0.00018819,2]
[327506934,1716132643935,-757.73416577,0.00018819,2]
[327506937,1716132643945,-1957.1978938,0.00018913,2]
[327506940,1716132643954,-387.8749084,0.00018914,2]
[327506943,1716132643965,-154.82968734,0.00019034,2]
[327506946,1716132643974,-162.275109,0.00019035,2]
[327506949,1716132643983,-154.82968734,0.00019177,2]
[327506952,1716132643993,-157.342908,0.00019178,2]
[327506955,1716132644003,-561.78139119,0.00019428,2]
[327506958,1716132644012,-150.0,0.0001947,3]
[327506961,1716132644021,-150.0,0.0001947,3]
[327506963,1716132644030,-920.56512604,0.00019862,2]
[327506965,1716132644040,-241.21190449,0.00020811,2]
[327506967,1716132644052,-441.51377914,0.00020812,2]
[327506970,1716132644064,-452.46697714,0.00020908,2]
[327506972,1716132644076,-309.62844895,0.00020908,2]
[327506974,1716132644088,-702.4648627,0.00020909,2]
[327506977,1716132644100,-156.43141822,0.0002091,2]
[327506979,1716132644112,-330.9155996,0.0002091,2]
[327506981,1716132644123,-1496.16357216,0.0002091,2]
[327506983,1716132644133,-194.42788305,0.0002091,2]
[327506985,1716132644143,-487.51409755,0.0002091,2]
[327506988,1716132644155,-513.39404903,0.0002091,2]
[327506990,1716132644166,-999.43226492,0.0002091,2]
[327506992,1716132644177,-1897.3147211,0.0002091,2]
[327506994,1716132644188,-1403.073184,0.0002091,2]
[327506996,1716132644200,-189.86799103,0.00020911,2]
[327506998,1716132644212,-3062.04975284,0.00020911,2]
[327506999,1716132644223,-467.95224184,0.00020912,2]
[327507000,1716132644235,-774.89092596,0.00020912,2]
[327507002,1716132644250,-634.40638144,0.00020912,2]
[327507004,1716132644260,-389.21034323,0.00020912,2]
[327507006,1716132644271,-10448.86120355,0.00020912,2]
[327507008,1716132644284,-895.80593484,0.00020912,2]
[327507010,1716132644295,-166.666666,0.00021918,2]
[327507012,1716132644306,-159.68754847,0.00022,2]
[327507013,1716132644317,-166.666666,0.00022431,2]
[327507014,1716132644328,-166.666666,0.00022944,2]
[327507015,1716132644340,-154.82968734,0.00023,2]
[327507016,1716132644351,-4691.82133028,0.00023,2]
[327507017,1716132644362,-166.666666,0.00023456,2]
[327507018,1716132644373,-223.74358816,0.00023733,2]
[327507019,1716132644383,-166.666666,0.00023969,2]
[327507020,1716132644394,-187.1445694,0.00024,2]
[327507021,1716132644404,-369.36,0.00024384,2]
[327507022,1716132644415,-409.512732,0.00024384,2]
[327507023,1716132644427,-166.666666,0.00024482,2]
[327507024,1716132644437,-167.40589565,0.00025,2]
[327507025,1716132644450,-400.66759561,0.00025,2]
[327507026,1716132644462,-1019.15478625,0.00026,2]
[327507027,1716132644473,-221.53735836,0.00028,2]
[327507028,1716132644483,-157.342908,0.00028328,2]
[327507029,1716132644493,-162.275109,0.00028552,2]
[327507030,1716132644503,-167.683106,0.00028986,2]
[327507031,1716132644512,-6983.78219636,0.00029531,2]
[327507032,1716132644523,-154.82968734,0.0003,4]
[327507033,1716132644534,-369.36,0.0003031,2]
[327507034,1716132644544,-409.512732,0.0003031,2]
[327507035,1716132644555,-448.48281368,0.00032,4]
[327507036,1716132644566,-819.9745554,0.00033,4]
[327507037,1716132644577,-410.25036122,0.00033493,4]
[327507038,1716132644588,-441.51377909,0.00033539,2]
[327507039,1716132644599,-467.90063964,0.00034,4]
[327507040,1716132644613,-150.0,0.00034348,7]
[327507041,1716132644624,-3114.17566307,0.00034596,120]
[327507131,1716132647249,299.47788129,0.00014,2]
[327507132,1716132663189,299.47788129,0.00014,2]
[327507133,1716132683170,299.47788129,0.00014,2]
[327507134,1716132703176,299.47788129,0.00014,2]
[327507135,1716132706999,305.34348314,0.00016,2]
[327507137,1716132723191,299.47788129,0.00014,2]
[327507138,1716132726961,305.34348314,0.00016,2]
[327507140,1716132744974,305.34348314,0.00016,2]
[327507141,1716132747177,299.47788129,0.00016,2]
[327507142,1716132758190,5983.55267228,0.00034576,30]
[327507143,1716132765194,386.35980628,0.00016,2]
[327507144,1716132767056,212.06626188,0.00016,2]
[327507145,1716132783910,281.31656163,0.00016,2]
[327507146,1716132791205,154.82968734,9.999e-05,2]
[327507148,1716132841110,3330.86162941,0.00034576,120]
[327507149,1716132917066,685.585,0.00032642,30]
[327507154,1716133064821,1270.0,0.00016,2]
[327507156,1716133391379,520.96713744,0.00032642,30]
[327507206,1716133832412,-6692.69,0.000164,2]
[327507236,1716133838376,-51752.3909103,0.000164,2]
[327507237,1716133838387,-331.13533437,0.00017495,2]
[327507238,1716133838397,-19764.7322134,0.00017595,2]
[327507239,1716133838406,-1628.6252456,0.00018245,3]
[327507240,1716133838416,-25403.6586723,0.00018245,2]
[327507241,1716133838426,-211.85506162,0.00018821,2]
[327507242,1716133838441,-334.92356417,0.000192,2]
[327507243,1716133838452,-150.0,0.00019484,3]
[327507244,1716133838462,-1270.0,0.0002,2]
[327507245,1716133838472,-895.80593484,0.0002091,2]
[327507246,1716133838482,-309.58208351,0.0002091,2]
[327507247,1716133838492,-1134.45406541,0.0002091,2]
[327507248,1716133838502,-156.37171136,0.0002091,2]
[327507249,1716133838512,-528.36551602,0.0002091,2]
[327507250,1716133838521,-684.49986273,0.00020911,2]
[327507251,1716133838531,-162.5201696,0.00020912,2]
[327507252,1716133838541,-4585.43342098,0.00020912,2]
[327507253,1716133838551,-159.08186743,0.00020912,2]
[327507254,1716133838560,-2107.25657902,0.00020912,2]
[327507255,1716133838571,-10448.86120355,0.00020912,2]
[327507256,1716133838581,-189.86799103,0.00020912,2]